Cogmind - Beta 17 @@@ ROGUE MODE // 2026.07.16 @ 02:53:57 Player: rz Result: Destroyed by Hotshot with Improved Heavy Laser Performance ------------- Evolutions (8) 4000 Regions Visited (17) 3400 Robots Destroyed (135) 675 Value Destroyed (4686) 4686 Prototype IDs (11) 220 Alien Tech Used (0) 0 Bonus (2802) 2802 TOTAL SCORE: 15783 Bonus ------- High Alert Combat Kills 529 Follower Combat Kills 1305 Registered with UFD 300 Met Optimus in HQ 500 Scanned by Researcher 500 Friendly Fire -332 Cogmind --------- Core Integrity 0/1450 Matter 300/300 Energy 99/100 System Corruption 9% Temperature Cool (18) Movement Core (50) Location -2/Protoforge Parts ------- > --- POWER (2) -------- (None) > --- PROPULSION (9) --- (None) > --- UTILITY (10) ----- (None) > --- WEAPON (2) ------- (None) > --- INVENTORY (5) ---- Experimental Cooling System Advanced Sensor Array Advanced Signal Interpreter Component Analysis Suite Peak State ------------ > --- POWER ------------ Particle Reactor Particle Reactor > --- PROPULSION ------- Combat Gravmag System Improved Antigrav System Antigrav Array Antigrav Array Antigrav Array Combat Linear Gravjet > --- UTILITY ---------- Experimental Heat Sink Long-range Sensor Array Advanced Signal Interpreter Advanced Powered Armor Advanced Powered Armor Hacking Suite Advanced Hacking Suite System Shield Advanced Drone Bay > --- WEAPON ----------- Fusion Bomb Launcher Ionic Axe > --- INVENTORY -------- Particle Reactor Improved Linear Gravjet Improved Linear Gravjet [Rating: 162] Favorites ----------- Power Improved Ion Engine Engine Improved Ion Engine Power Core Light Nuclear Core Reactor Particle Reactor Propulsion Light Treads Treads Light Treads Leg Carbon-fiber Leg Wheel Armored Wheel Hover Unit Improved Antigrav System Utility Improved Heat Sink Device Improved Heat Sink Storage Large Storage Unit Processor Improved Signal Interpreter Hackware Hacking Suite Protection Utility Shielding Weapon Advanced Beam Cannon Energy Cannon Advanced Beam Cannon Ballistic Gun Light Assault Rifle Ballistic Cannon Heavy Flak Cannon Launcher Fusion Bomb Launcher Impact Weapon Mace Slashing Weapon Ionic Axe Piercing Weapon Force Lance Build | -11 -10 -9 -9 -9 -9 -6 -6 -6 -5 -4 -4 -4 -3 -3 -2 -2 -2 ------- Run | Yrd Mat Mat Sto Rec Scr Fac Was Fac Fac Fac Was Fac Res Qua Res Tes Frg Slots Evolved 16 | . . 2 . . . 6 . . 2 2 . . 2 . 2 . . Power 1 | . . . . . . 1 . . . . . . . . . . . Propulsion 7 | . . 1 . . . 3 . . . 1 . . 1 . 1 . . Utility 8 | . . 1 . . . 2 . . 2 1 . . 1 . 1 . . Weapon . | . . . . . . . . . . . . . . . . . . Parts Attached 121 | 5 3 16 6 3 5 29 4 . 5 3 1 3 9 5 17 7 . Power 19 | 1 1 3 1 . . 5 2 . . . 1 . 2 . 2 1 . Engine 10 | 1 1 2 1 . . 5 . . . . . . . . . . . Core 1 | . . 1 . . . . . . . . . . . . . . . Reactor 8 | . . . . . . . 2 . . . 1 . 2 . 2 1 . Propulsion 46 | 2 . 6 5 2 4 7 . . 1 1 . . 4 1 8 5 . Treads 16 | 2 . 6 5 2 1 . . . . . . . . . . . . Leg 2 | . . . . . . 2 . . . . . . . . . . . Wheel 5 | . . . . . 3 2 . . . . . . . . . . . Hover 23 | . . . . . . 3 . . 1 1 . . 4 1 8 5 . Flight . | . . . . . . . . . . . . . . . . . . Utility 38 | 1 1 3 . . 1 12 2 . 4 1 . 1 2 2 7 1 . Device 17 | . 1 . . . . 5 1 . 1 1 . . . 1 6 1 . Storage 4 | 1 . 2 . . 1 . . . . . . . . . . . . Processor 4 | . . . . . . 3 . . . . . . . . 1 . . Hackware 8 | . . . . . . 3 1 . 2 . . 1 1 . . . . Protection 5 | . . 1 . . . 1 . . 1 . . . 1 1 . . . Artifact . | . . . . . . . . . . . . . . . . . . Weapon 18 | 1 1 4 . 1 . 5 . . . 1 . 2 1 2 . . . Energy Gun . | . . . . . . . . . . . . . . . . . . Energy Cannon 6 | . . 4 . 1 . 1 . . . . . . . . . . . Ballistic Gun 1 | 1 . . . . . . . . . . . . . . . . . Ballistic Cannon 3 | . 1 . . . . 1 . . . 1 . . . . . . . Launcher 4 | . . . . . . 2 . . . . . 1 . 1 . . . Special Weapon . | . . . . . . . . . . . . . . . . . . Impact Weapon 1 | . . . . . . 1 . . . . . . . . . . . Slashing Weapon 1 | . . . . . . . . . . . . . . 1 . . . Piercing Weapon 2 | . . . . . . . . . . . . 1 1 . . . . Special Melee Weapon . | . . . . . . . . . . . . . . . . . . Unidentified Prototypes 4 | . . 1 . . . 1 . . 1 . . . . 1 . . . Parts Lost 39 | . . 1 . 2 . 15 . . 2 . . 2 4 . 2 5 6 Power 4 | . . . . . . 2 . . . . . . . . . 1 1 Propulsion 14 | . . 1 . 1 . 6 . . . . . . . . 1 2 3 Utility 13 | . . . . . . 3 . . 2 . . 1 3 . 1 1 2 Weapon 8 | . . . . 1 . 4 . . . . . 1 1 . . 1 . Highest Loss Streak 6 | . . 1 . 2 . 6 . . 1 . . 1 3 . 1 3 6 To Critical Strikes . | . . . . . . . . . . . . . . . . . . Average Backups 10 | 1 6 12 14 14 16 16 5 5 4 4 4 4 4 5 4 4 4 Power . | . 1 . 1 1 1 1 . . . . . . 1 1 . . . Propulsion 2 | 1 3 5 4 4 4 1 . . . . 1 2 2 3 1 1 . Utility 5 | . . 4 9 9 9 10 5 5 3 3 3 2 . . 1 3 4 Weapon 1 | . 1 1 . . 2 3 . . . . . . . . . . . Tool/Special . | . . . . . . . . . . . . . . . . . . Unused Backups 34 | . . 12 2 . 1 5 . . . . 1 . 1 . 6 3 3 Power 1 | . . . . . . . . . . . . . 1 . . . . Propulsion 8 | . . 7 . . . . . . . . . . . . . 1 . Utility 16 | . . 3 1 . . 3 . . . . 1 . . . 5 . 3 Weapon 9 | . . 2 1 . 1 2 . . . . . . . . 1 2 . Tool/Special . | . . . . . . . . . . . . . . . . . . Average Slot Usage (%) 90 | . 83 96 100 91 100 90 76 80 78 81 84 83 78 75 89 90 53 Engine 6 | . 10 6 11 11 11 12 5 . . . . . . . . . . Reactor 3 | . . . . . . . 3 13 11 10 10 10 9 9 8 8 4 Treads 16 | . 26 31 33 25 30 12 . . . . . . . . . . . Wheel 2 | . . . . . 2 16 . . . . . . . . . . . Hover 10 | . . . . . . 1 20 20 20 26 26 26 24 23 30 32 17 Device 11 | . 5 11 11 11 11 9 13 13 7 3 10 8 4 7 15 18 11 Storage 6 | . 14 11 11 11 11 5 . . . . . . . . . . . Processor 3 | . . . . . . 9 6 6 5 5 5 5 4 4 4 4 2 Hackware 6 | . . . . . . 3 13 13 16 20 15 16 18 14 13 13 9 Protection 7 | . . 9 11 11 11 2 . . 2 5 5 5 8 6 7 5 2 Energy Cannon 10 | . . 19 22 21 22 9 . . . . . . . . . . . Ballistic Cannon 1 | . 12 1 . . . . 6 6 5 5 5 1 . . . . . Launcher 1 | . . . . . . 1 . . . . . 3 3 2 4 2 . Peak Build Rating 162 | 5 10 19 20 20 22 61 71 71 87 100 101 106 140 147 162 158 145 Average Rating 61 | 4 7 17 19 17 19 43 60 71 80 94 100 104 128 137 153 150 93 On Entrance 69 | . 5 9 19 20 18 22 55 71 71 84 100 101 100 117 147 158 145 Avg Prop Armor Cover (%) 5 | . . . . . . 13 . . . 1 . . . . 1 1 . Naked Turns 40 | . . . . . . . . . . . . . . . . . 40 Heaviest Build 96 | 9 13 37 37 37 56 72 45 45 57 60 60 65 85 96 94 90 55 Greatest Support 126 | 40 40 60 63 63 66 66 49 53 67 75 75 76 111 113 126 123 123 Greatest Overweight (x) 4 | . 3 . . . 1 4 . . . . . . . . 1 . . Average Overweight (x) . | . . . . . . . . . . . . . . . . . . Largest Inventory Capacity 20 | 8 8 15 15 15 20 20 5 5 5 5 5 5 5 5 5 5 5 Average Capacity 11 | 7 8 13 15 15 16 18 5 5 5 5 5 5 5 5 5 5 5 Most Carried 20 | 3 8 15 15 15 20 20 5 5 5 5 5 5 5 5 5 5 5 Average Carried 11 | 1 6 12 14 14 16 17 4 5 4 4 4 4 4 4 4 4 4 Final Capacity 20 | 8 8 15 15 15 20 5 5 5 5 5 5 5 5 5 5 5 5 Final Carried 20 | 3 8 15 15 15 20 5 5 5 5 4 5 5 5 5 5 5 4 Class Distribution -------------------- 32% | Scavenger-Mutant 28% | Hacker-Mutant 27% | Mutant 11% | Hacker-Sprinter Dominant Class ---------------- Mutant | -10/Materials Scavenger-Mutant | -9/Materials Scavenger-Mutant | -9/Storage Mutant | -9/Recycling Mutant | -9/Scraptown Scavenger-Mutant | -6/Factory Hacker-Mutant | -6/Waste Hacker-Mutant | -6/Factory Hacker-Mutant | -5/Factory Hacker-Mutant | -4/Factory Hacker-Mutant | -4/Waste Hacker-Mutant | -4/Factory Hacker-Mutant | -3/Research Hacker-Mutant | -3/Quarantine Hacker-Mutant | -2/Research Hacker-Sprinter | -2/Testing Hacker-Mutant | -2/Protoforge Resources | -11 -10 -9 -9 -9 -9 -6 -6 -6 -5 -4 -4 -4 -3 -3 -2 -2 -2 ----------- Run | Yrd Mat Mat Sto Rec Scr Fac Was Fac Fac Fac Was Fac Res Qua Res Tes Frg Matter Collected 2413 | 226 159 375 50 30 20 294 311 . . . 80 223 126 . 250 259 10 Remotely . | . . . . . . . . . . . . . . . . . . Salvage Created 4530 | . 307 818 976 174 . 1012 . . . 38 . 428 87 . 386 304 . Parts 283 | . 22 55 63 9 . 41 . . . . . 23 9 . 39 22 . Haulers Intercepted 8 | . . 4 3 . . 1 . . . . . . . . . . . Recyclers Shooed 6 | . 2 . 1 . . 1 . . . . . 1 . . . 1 . Parts Field Recycled . | . . . . . . . . . . . . . . . . . . Retrieved Matter . | . . . . . . . . . . . . . . . . . . Parts Self-Destructed . | . . . . . . . . . . . . . . . . . . Prevented . | . . . . . . . . . . . . . . . . . . Parts Restored . | . . . . . . . . . . . . . . . . . . Kills | -11 -10 -9 -9 -9 -9 -6 -6 -6 -5 -4 -4 -4 -3 -3 -2 -2 -2 ------- Run | Yrd Mat Mat Sto Rec Scr Fac Was Fac Fac Fac Was Fac Res Qua Res Tes Frg Combat Hostiles Destroyed 96 | . 7 20 18 3 . 21 . . . . . 14 1 . 8 4 . Melee 8 | . . . . . . . . . . . . 1 1 . 5 1 . Guns 2 | . 1 1 . . . . . . . . . . . . . . . Cannons 54 | . 6 17 18 3 . 10 . . . . . . . . . . . AOE 27 | . . . . . . 8 . . . . . 13 . . 3 3 . Classes Destroyed 13 | . 6 2 . . . 4 . . . . . . . . . 1 . Worker 9 | . 2 . . . . 1 . . . . . 3 1 . 1 1 . Builder 13 | . 2 . 1 . . 5 . . . 1 . . . . 1 3 . Hauler 8 | . . 4 3 . . 1 . . . . . . . . . . . Recycler 1 | . 1 . . . . . . . . . . . . . . . . Operator 5 | . . . . . . 1 . . . 1 . . . . 1 2 . Watcher 1 | . 1 . . . . . . . . . . . . . . . . Swarmer 34 | . 3 11 4 . . 7 . . . . . 5 . . 4 . . Grunt 23 | . 4 3 4 . . 6 . . . . . 5 . . . 1 . Duelist 2 | . . . . . . 1 . . . . . 1 . . . . . Researcher 1 | . . . . . . . . . . . . . . . . 1 . Sentry 22 | . . 6 10 3 . 2 . . . . . 1 . . . . . Hunter 6 | . . . . . . 3 . . . . . 1 . . . 2 . Programmer 9 | . . . . . . 2 . . . . . 1 1 . 4 1 . Thug 1 | . . . . . . . . . . . . 1 . . . . . Best Kill Streak 10 | . 6 5 10 1 . 9 . . . 1 . 8 1 . 5 4 . Combat Bots Only 8 | . 3 4 8 1 . 3 . . . . . 8 1 . 4 3 . Max Kills in Single Turn 5 | . 1 1 2 1 . 3 . . . 1 . 5 1 . 4 2 . Gunslinging . | . . . . . . . . . . . . . . . . . . Exploded 5 | . . . . . . 3 . . . . . 5 . . 3 2 . Melee 1 | . . . . . . . . . . . . 1 1 . 1 1 . Uniques/NPCs Destroyed . | . . . . . . . . . . . . . . . . . . Combat | -11 -10 -9 -9 -9 -9 -6 -6 -6 -5 -4 -4 -4 -3 -3 -2 -2 -2 -------- Run | Yrd Mat Mat Sto Rec Scr Fac Was Fac Fac Fac Was Fac Res Qua Res Tes Frg Hostile Shots Fired 991 | . 31 102 50 18 . 216 . 30 41 . . 58 97 38 61 113 136 Missed 385 | . 7 21 12 7 . 70 . 17 20 . . 29 43 16 23 65 55 Hits 606 | . 24 81 38 11 . 146 . 13 21 . . 29 54 22 38 48 81 Melee 9 | . . . . . . 2 . . . . . . . . . 7 . Projectile 597 | . 24 81 38 11 . 144 . 13 21 . . 29 54 22 38 41 81 Critical Strikes 25 | . . 3 2 1 . 1 . . 3 . . 3 2 1 2 . 7 Actively Blocked 1 | . . 1 . . . . . . . . . . . . . . . Part Disruptions 2 | . . . . . . . . . . . . . . . 2 . . Damage Taken 11248 | . 253 911 447 162 . 2433 . 106 364 . . 792 1134 435 896 1277 2038 Core 2441 | . 95 94 50 . . 380 . 6 19 . . 178 140 16 22 156 1285 Absorbed by Shields . | . . . . . . . . . . . . . . . . . . Redirected to Shielding 22 | . . 21 . . . 1 . . . . . . . . . . . Regen/Repaired (Parts) 1065 | . . . . . . . . . . . 76 425 276 . 288 . . Core Remaining (%) 78 | 100 62 . . . 64 . . 54 98 . . 84 . 88 . . . Volleys Fired 245 | . 30 58 42 10 . 86 . . . . . 13 . . 1 5 . Largest 2 | . 2 2 2 2 . 2 . . . . . 1 . . 1 1 . Hottest 148 | . 50 136 136 136 . 148 . . . . . 49 . . 52 52 . Shots Fired 442 | . 60 116 84 20 . 142 1 . . . . 13 . . 1 5 . Gun 47 | . 30 17 . . . . . . . . . . . . . . . Cannon 361 | . 30 99 84 20 . 127 1 . . . . . . . . . . Launcher 34 | . . . . . . 15 . . . . . 13 . . 1 5 . Special . | . . . . . . . . . . . . . . . . . . Kinetic 95 | . 60 34 . . . . 1 . . . . . . . . . . Thermal 313 | . . 82 84 20 . 127 . . . . . . . . . . . Explosive 34 | . . . . . . 15 . . . . . 13 . . 1 5 . Electromagnetic . | . . . . . . . . . . . . . . . . . . Robot Hit Streak 15 | . 15 9 14 10 . 13 . . . . . 2 . . . 4 . Robot Miss Streak 5 | . 2 5 4 2 . 4 . . . . . 3 . . . 1 . Penetration Max . | . . . . . . . . . . . . . . . . . . Secondary Targets . | . . . . . . . . . . . . . . . . . . Shots Hit Robots 344 | . 47 67 49 14 . 103 . 1 . 2 . 14 6 1 14 23 3 Core Hits 198 | . 18 25 22 4 . 56 . . . . . 41 2 . 10 19 1 Critical Kills 2 | . . 1 . . . 1 . . . . . . . . . . . Critical Parts Destroyed 4 | . 1 . . . . 3 . . . . . . . . . . . Critical Strikes 18 | . 1 1 . . . 4 . . . . . 3 1 . 3 4 1 Meltdown 2 | . . 1 . . . 1 . . . . . . . . . . . Destroy 1 | . 1 . . . . . . . . . . . . . . . . Smash 3 | . . . . . . 3 . . . . . . . . . . . Sever 8 | . . . . . . . . . . . . . . . 3 4 1 Impale 4 | . . . . . . . . . . . . 3 1 . . . . Melee Attacks 136 | . . . . . . 17 . 4 7 6 . 13 7 6 40 32 4 Impact 34 | . . . . . . 17 . 4 7 6 . . . . . . . Slashing 81 | . . . . . . . . . . . . . . 5 40 32 4 Piercing 21 | . . . . . . . . . . . . 13 7 1 . . . Sneak Attacks 17 | . . . . . . 2 . . . 1 . 2 1 . 4 7 . Combat Hostiles 1 | . . . . . . . . . . . . . . . 1 . . Follow-up Attacks . | . . . . . . . . . . . . . . . . . . Damage Inflicted 14468 | . 616 1199 1102 273 . 3232 . 25 . 113 . 3598 405 46 1265 2454 140 Guns 276 | . 182 94 . . . . . . . . . . . . . . . Cannons 4830 | . 434 1105 1102 273 . 1916 . . . . . . . . . . . Explosions 5275 | . . . . . . 882 . . . . . 3069 . . 359 965 . Melee 4069 | . . . . . . 434 . 25 . 113 . 529 405 46 906 1489 122 Ramming 18 | . . . . . . . . . . . . . . . . . 18 Kinetic 865 | . 616 249 . . . . . . . . . . . . . . . Thermal 4494 | . . 950 1102 273 . 1916 . . . . . 253 . . . . . Explosive 5022 | . . . . . . 882 . . . . . 2816 . . 359 965 . Electromagnetic . | . . . . . . . . . . . . . . . . . . Impact 572 | . . . . . . 434 . 25 . 113 . . . . . . . Slashing 2517 | . . . . . . . . . . . . . . . 906 1489 122 Piercing 980 | . . . . . . . . . . . . 529 405 46 . . . Highest Corruption 9 | . . . . . . 4 4 . . . . 1 2 2 7 7 9 Average Corruption 4 | . . . . . . 2 2 . . . . 1 1 2 6 3 6 Corruption Purged 9 | . . . . . . . 4 . . . . . . . . 5 . Corruption Blocked . | . . . . . . . . . . . . . . . . . . Effects 49 | . . . . . . 4 1 . . . . . 2 4 23 12 3 Message Errors 15 | . . . . . . 1 . . . . . . 1 1 10 2 . Matter Fused 13 | . . . . . . 1 . . . . . . . 1 6 4 1 Heat Flow Errors 10 | . . . . . . . . . . . . . . 2 4 2 2 Energy Discharges 3 | . . . . . . . . . . . . . . . 1 2 . Parts Rejected 3 | . . . . . . 2 . . . . . . 1 . . . . Data Loss (minor) 1 | . . . . . . . . . . . . . . . . 1 . Data Loss (major) 3 | . . . . . . . . . . . . . . . 2 1 . Misfires 1 | . . . . . . . 1 . . . . . . . . . . Overload Shots . | . . . . . . . . . . . . . . . . . . Overflow Damage 1222 | . . 1 . . . 318 . . . 83 . 201 37 . 222 360 . Projectiles 75 | . . 1 . . . 74 . . . . . . . . . . . Explosions 217 | . . . . . . 23 . . . . . 67 . . 80 47 . Melee 930 | . . . . . . 221 . . . 83 . 134 37 . 142 313 . Knockbacks 12 | . 8 . . . . 3 . . . 1 . . . . . . . Impact 4 | . . . . . . 3 . . . 1 . . . . . . . Kinetic 8 | . 8 . . . . . . . . . . . . . . . . Secondary . | . . . . . . . . . . . . . . . . . . Self-Inflicted Damage 228 | . . . . . . 69 . . . . . 142 . . 10 . 7 Shots 7 | . . . . . . 3 . . . . . 3 . . 1 . . Rammed 5 | . . . . . . . . . . . . . . . . . 5 Targets Rammed 5 | . . . . . . . . . . . . . . . . . 5 Kicked . | . . . . . . . . . . . . . . . . . . Crushed . | . . . . . . . . . . . . . . . . . . Highest Temperature 359 | . 40 345 165 117 . 359 . . 7 274 . 28 . 178 339 43 19 Average Temperature 90 | . 15 118 58 51 . 104 . . 6 141 . 10 . 83 72 43 19 Received Heat Transfer 1635 | . 90 270 159 45 . 369 . 33 117 . . 105 18 105 18 . 306 Effects 3 | . . . . . . 1 . . . 2 . . . . . . . Interference 2 | . . . . . . . . . . 2 . . . . . . . Damage (minor) 1 | . . . . . . 1 . . . . . . . . . . . Siege Activations . | . . . . . . . . . . . . . . . . . . Martial Activations . | . . . . . . . . . . . . . . . . . . Shielding Activations . | . . . . . . . . . . . . . . . . . . Robots Disrupted . | . . . . . . . . . . . . . . . . . . Combat Hostiles . | . . . . . . . . . . . . . . . . . . Robots Corrupted 3 | . . . . . . 2 . . . 1 . . . . . . . Combat Hostiles . | . . . . . . . . . . . . . . . . . . Parts Fried 9 | . . . . . . 7 . . . 2 . . . . . . . Impact Corruptions 14 | . . . . . . 11 . . . 3 . . . . . . . Robots Melted 5 | . . 2 . . . 3 . . . . . . . . . . . Combat Hostiles 5 | . . 2 . . . 3 . . . . . . . . . . . Parts Melted 20 | . . 5 2 3 . 10 . . . . . . . . . . . Heat Transferred 8230 | . . 1702 1998 518 . 3662 . . . . . 350 . . . . . Parts Sabotaged . | . . . . . . . . . . . . . . . . . . Parts Stolen . | . . . . . . . . . . . . . . . . . . Parts Stripped . | . . . . . . . . . . . . . . . . . . Power Chain Reactions . | . . . . . . . . . . . . . . . . . . Alert | -11 -10 -9 -9 -9 -9 -6 -6 -6 -5 -4 -4 -4 -3 -3 -2 -2 -2 ------- Run | Yrd Mat Mat Sto Rec Scr Fac Was Fac Fac Fac Was Fac Res Qua Res Tes Frg Maximum Alert Level 5 | . . . 1 . . 1 . . . . . 5 4 2 1 2 1 Low Security (%) 79 | 100 100 100 79 100 . 99 100 100 100 100 100 13 . . 84 46 . Level 1 10 | . . . 20 . . . . . . . . 15 . 35 15 37 100 Level 2 2 | . . . . . . . . . . . . 8 . 64 . 15 . Level 3 4 | . . . . . . . . . . . . 11 94 . . . . Level 4 2 | . . . . . . . . . . . . 38 5 . . . . Level 5 . | . . . . . . . . . . . . 13 . . . . . High Security . | . . . . . . . . . . . . . . . . . . Max Security . | . . . . . . . . . . . . . . . . . . Peak Influence 2112 | . 98 162 311 114 . 214 53 47 139 67 5 2112 1103 512 267 496 289 Initial 1103 | . . 30 61 114 . . 53 . 22 67 5 . 1103 512 267 58 279 Average 168 | . 55 84 97 22 . 54 14 1 45 36 . 948 988 439 111 204 249 Influence Increases 6776 | . 203 571 579 60 . 855 . 48 195 18 . 2742 158 205 343 754 45 Destroy 0b10 Robot/C 2460 | . 140 400 360 60 . 420 . . . . . 760 40 . 160 120 . Destroy 0b10 Robot/NC 235 | . 30 20 20 . . 40 . . . 10 . 60 5 . 15 35 . Destroy Leader 570 | . 32 108 136 . . 92 . . . . . 130 10 . 30 32 . Allied During Kill 947 | . . . . . . . . . . . . 919 2 . . 26 . Successful Hack 124 | . . 8 15 . . . . . 24 . . 10 27 . 12 28 . Disable Machine 300 | . . . 30 . . 60 . . . . . 135 . . . 75 . Anti-Garrison Action 150 | . . . . . . . . . . . . 150 . . . . . Destroy Structure 925 | . 1 5 3 . . 63 . 3 6 8 . 578 14 10 96 138 . Partial Spotted 105 | . . . . . . . . . . . . . . . 30 45 30 Lose Combat Pursuer 960 | . . 30 15 . . 180 . 45 165 . . . 60 195 . 255 15 Influence Decreases 6572 | . 130 499 429 355 . 702 153 1 103 142 15 640 1349 639 716 362 337 Entered New Map 2386 | . . 43 84 181 . . 100 . 25 72 10 . 999 399 210 46 217 Time Decay 2784 | . 130 446 345 120 . 418 53 1 70 70 5 180 160 80 400 246 60 Lost Part 362 | . . 10 . 20 . 134 . . 8 . . 20 40 . 20 50 60 Lost Ally 320 | . . . . . . . . . . . . 140 150 10 . 20 . Purge Threat 720 | . . . . 34 . 150 . . . . . 300 . 150 86 . . Squads Dispatched 45 | . . . 2 . . 8 . 1 1 1 . 11 3 2 7 6 3 Investigation 10 | . . . 1 . . 3 . 1 1 . . 3 . . . . 1 Extermination 14 | . . . . . . 3 . . . . . 1 1 1 5 3 . Reinforcement 18 | . . . 1 . . 2 . . . 1 . 4 2 1 2 3 2 Assault 3 | . . . . . . . . . . . . 3 . . . . . Garrison . | . . . . . . . . . . . . . . . . . . Intercept . | . . . . . . . . . . . . . . . . . . Searches Triggered . | . . . . . . . . . . . . . . . . . . Construction Impeded 3 | . . . . . . 1 . . . . . 1 1 . . . . Haulers Reinforced 2 | . . . . . . . . . . . . 1 . . . 1 . Active Scanning Responses . | . . . . . . . . . . . . . . . . . . Cargo Convoy Interrupts 1 | . . . . . . 1 . . . . . . . . . . . Stealth | -11 -10 -9 -9 -9 -9 -6 -6 -6 -5 -4 -4 -4 -3 -3 -2 -2 -2 --------- Run | Yrd Mat Mat Sto Rec Scr Fac Was Fac Fac Fac Was Fac Res Qua Res Tes Frg Distress Signals 13 | . . 2 . . . 2 . . . . . 2 1 1 . . 5 Communications Jammed . | . . . . . . . . . . . . . . . . . . Distress Signals . | . . . . . . . . . . . . . . . . . . Times Spotted 278 | . 10 28 20 3 . 48 . 5 13 1 . 34 22 16 20 36 22 Peak Tracking Total 18 | . 5 5 8 1 . 15 . 5 12 1 . 8 17 9 7 14 18 Tactical Retreats 23 | . . 2 1 . . 5 . 1 3 . . . 1 4 . 5 1 Traps | -11 -10 -9 -9 -9 -9 -6 -6 -6 -5 -4 -4 -4 -3 -3 -2 -2 -2 ------- Run | Yrd Mat Mat Sto Rec Scr Fac Was Fac Fac Fac Was Fac Res Qua Res Tes Frg Traps Triggered 18 | . 2 2 1 . . 5 . . 1 1 . . 2 . 1 1 2 Indirectly . | . . . . . . . . . . . . . . . . . . Trap Hack Attempts . | . . . . . . . . . . . . . . . . . . Triggered . | . . . . . . . . . . . . . . . . . . Disarmed . | . . . . . . . . . . . . . . . . . . Reprogrammed . | . . . . . . . . . . . . . . . . . . Reused . | . . . . . . . . . . . . . . . . . . Traps Extracted . | . . . . . . . . . . . . . . . . . . Installed . | . . . . . . . . . . . . . . . . . . Triggered . | . . . . . . . . . . . . . . . . . . Machines | -11 -10 -9 -9 -9 -9 -6 -6 -6 -5 -4 -4 -4 -3 -3 -2 -2 -2 ---------- Run | Yrd Mat Mat Sto Rec Scr Fac Was Fac Fac Fac Was Fac Res Qua Res Tes Frg Machines Disabled 21 | . . . 2 . . 4 . . . . . 10 . . . 5 . Max in Single Turn 2 | . . . 1 . . 1 . . . . . 2 . . . 1 . Garrison Access 1 | . . . . . . . . . . . . 1 . . . . . Machines Repaired . | . . . . . . . . . . . . . . . . . . Machines Dismantled . | . . . . . . . . . . . . . . . . . . Machines Sabotaged . | . . . . . . . . . . . . . . . . . . Overloaded Fab Kills . | . . . . . . . . . . . . . . . . . . Hacking | -11 -10 -9 -9 -9 -9 -6 -6 -6 -5 -4 -4 -4 -3 -3 -2 -2 -2 --------- Run | Yrd Mat Mat Sto Rec Scr Fac Was Fac Fac Fac Was Fac Res Qua Res Tes Frg Machines Accessed 63 | . 3 1 5 5 5 6 . 2 4 2 . 8 5 3 4 7 3 Terminals 37 | . 2 1 4 1 . 3 . . 3 1 . 4 3 3 2 7 3 Fabricators . | . . . . . . . . . . . . . . . . . . Repair Stations 5 | . . . . . . . . 1 1 . . 1 1 . 1 . . Recycling Units 12 | . 1 . 1 4 . 3 . 1 . . . 2 . . . . . Scanalyzers 4 | . . . . . . . . . . 1 . 1 1 . 1 . . Garrison Access . | . . . . . . . . . . . . . . . . . . Total Hacks 159 | . 5 1 9 9 38 9 . 4 9 4 . 24 9 8 10 14 6 Successful 87 | . 1 1 4 2 38 3 . 1 4 2 . 11 6 3 6 4 1 Failed 69 | . 4 . 5 7 . 6 . 3 5 1 . 12 3 5 3 10 5 Catastrophic 17 | . 3 . . 1 . 2 . . 1 . . 1 1 2 1 4 1 Database Lockouts 3 | . . . . . . . . . . 1 . 1 . . 1 . . Manual 51 | . 3 1 4 2 . 6 . 2 3 . . 11 1 5 4 8 1 Terminals 73 | . 3 1 7 2 . 5 . . 5 2 . 12 3 8 5 14 6 Fabricators . | . . . . . . . . . . . . . . . . . . Repair Stations 17 | . . . . . . . . 2 4 . . 7 2 . 2 . . Recycling Units 19 | . 2 . 2 7 . 4 . 2 . . . 2 . . . . . Scanalyzers 12 | . . . . . . . . . . 2 . 3 4 . 3 . . Garrison Access . | . . . . . . . . . . . . . . . . . . Terminal Hacks 64 | . . 1 3 1 38 1 . . 3 1 . 4 2 3 2 4 1 Record 38 | . . . . . 38 . . . . . . . . . . . . Open Door 3 | . . . 2 . . . . . . . . . 1 . . . . Level Access Points 3 | . . . . . . . . . 1 . . 1 . 1 . . . Branch Access Points 7 | . . 1 1 . . . . . . . . . 1 1 1 2 . Alert Level 2 | . . . . . . . . . 1 . . 1 . . . . . Unreport Threat 7 | . . . . 1 . 1 . . 1 . . 2 . 1 1 . . Recall Reinforcements 1 | . . . . . . . . . . 1 . . . . . . . Zone Layout 3 | . . . . . . . . . . . . . . . . 2 1 Fabricator Hacks . | . . . . . . . . . . . . . . . . . . Repair Station Hacks 8 | . . . . . . . . . 1 . . 3 2 . 2 . . Scan Component 5 | . . . . . . . . . 1 . . 2 1 . 1 . . Repair 3 | . . . . . . . . . . . . 1 1 . 1 . . Recycling Unit Hacks 3 | . 1 . 1 1 . . . . . . . . . . . . . Retrieve Components 3 | . 1 . 1 1 . . . . . . . . . . . . . Scanalyzer 7 | . . . . . . . . . . 1 . 2 2 . 2 . . Retrieve Study 7 | . . . . . . . . . . 1 . 2 2 . 2 . . Garrison Access Hacks . | . . . . . . . . . . . . . . . . . . Unauthorized Hacks 5 | . . . . . . 2 . 1 . . . 2 . . . . . Terminals . | . . . . . . . . . . . . . . . . . . Fabricators . | . . . . . . . . . . . . . . . . . . Repair Stations . | . . . . . . . . . . . . . . . . . . Recycling Units 5 | . . . . . . 2 . 1 . . . 2 . . . . . Fedlink 5 | . . . . . . 2 . 1 . . . 2 . . . . . Scanalyzers . | . . . . . . . . . . . . . . . . . . Garrison Access . | . . . . . . . . . . . . . . . . . . Data Cores Recovered 2 | . . . . . . . . . . . . . . . 1 1 . Used . | . . . . . . . . . . . . . . . . . . Hacking Detections 43 | . 2 . 3 4 . 5 . 1 4 1 . 5 3 2 3 7 3 Full Trace Events 2 | . . . . . . . . . 1 . . 1 . . . . . Feedback Events . | . . . . . . . . . . . . . . . . . . Feedback Blocked . | . . . . . . . . . . . . . . . . . . Robot Schematics Acquired . | . . . . . . . . . . . . . . . . . . Robots Built . | . . . . . . . . . . . . . . . . . . Authchips . | . . . . . . . . . . . . . . . . . . Time . | . . . . . . . . . . . . . . . . . . Total Robot Build Rating . | . . . . . . . . . . . . . . . . . . Part Schematics Acquired 1 | . . . . . . . . . . . . . . . . 1 . Parts Built . | . . . . . . . . . . . . . . . . . . Authchips . | . . . . . . . . . . . . . . . . . . Time . | . . . . . . . . . . . . . . . . . . Total Part Build Rating . | . . . . . . . . . . . . . . . . . . Part Studies Acquired 7 | . . . . . . . . . . 1 . 2 2 . 2 . . Parts Repaired 3 | . . . . . . . . . . . . 1 1 . 1 . . Time 218 | . . . . . . . . . . . . 47 103 . 68 . . Parts Recycled . | . . . . . . . . . . . . . . . . . . Recycled Matter . | . . . . . . . . . . . . . . . . . . Retrieved Matter . | . . . . . . . . . . . . . . . . . . Retrieved Components 13 | . 1 . 9 3 . . . . . . . . . . . . . Parts Scanalyzed . | . . . . . . . . . . . . . . . . . . Part Schematics Acquired . | . . . . . . . . . . . . . . . . . . Parts Damaged . | . . . . . . . . . . . . . . . . . . Bothacking | -11 -10 -9 -9 -9 -9 -6 -6 -6 -5 -4 -4 -4 -3 -3 -2 -2 -2 ------------ Run | Yrd Mat Mat Sto Rec Scr Fac Was Fac Fac Fac Was Fac Res Qua Res Tes Frg Used RIF Installer . | . . . . . . . . . . . . . . . . . . Robots Hacked . | . . . . . . . . . . . . . . . . . . Non-combat . | . . . . . . . . . . . . . . . . . . Combat . | . . . . . . . . . . . . . . . . . . Robot Hacks Applied . | . . . . . . . . . . . . . . . . . . Relay Couplers Released 2 | . . . . . . . . . . . . 2 . . . . . Machine Destruction 2 | . . . . . . . . . . . . 2 . . . . . Fabnet Peak Effective % . | . . . . . . . . . . . . . . . . . . Robots Rewired 1 | . . . . . . . . . . . . . . . . 1 . Allies Hacked 2 | . . . . . . . . . . . . . 2 . . . . Hacks Repelled . | . . . . . . . . . . . . . . . . . . Allies | -11 -10 -9 -9 -9 -9 -6 -6 -6 -5 -4 -4 -4 -3 -3 -2 -2 -2 -------- Run | Yrd Mat Mat Sto Rec Scr Fac Was Fac Fac Fac Was Fac Res Qua Res Tes Frg Total Allies 21 | . . . . . . . . . . . 20 . . . . 1 . Largest Group 20 | . . . . . . . . . . . 20 20 9 . . 1 . Highest-Rated Group 730 | . . . . . . . . . . . 730 730 383 . . 164 . Highest-Rated Ally 164 | . . . . . . . . . . . 50 50 50 . . 164 . Initial UFD Resources 65 | . . . . . . 24 38 38 44 46 46 46 63 63 65 65 65 Total Orders 2 | . . . . . . . . . . . . . . 2 . . . EXPLORE 2 | . . . . . . . . . . . . . . 2 . . . Ally Attacks 216 | . . . . . . . . . . . 8 170 26 . . 12 . Total Damage 7305 | . . . . . . . . . . . 156 5557 832 . . 760 . Kills 38 | . . . . . . . . . . . 1 34 1 . . 2 . Allies Corrupted 5 | . . . . . . . . . . . . 2 3 . . . . Allies Melted 1 | . . . . . . . . . . . . 1 . . . . . Intel | -11 -10 -9 -9 -9 -9 -6 -6 -6 -5 -4 -4 -4 -3 -3 -2 -2 -2 ------- Run | Yrd Mat Mat Sto Rec Scr Fac Was Fac Fac Fac Was Fac Res Qua Res Tes Frg Active Infowar (turns) 3700 | . . . . . . 863 234 199 49 92 159 266 . . 1169 585 84 Sensors 3700 | . . . . . . 863 234 199 49 92 159 266 . . 1169 585 84 Robot Analysis Total . | . . . . . . . . . . . . . . . . . . Derelict Logs Recovered . | . . . . . . . . . . . . . . . . . . Drone Launches 2 | . . . . . . . . . . . . . . 2 . . . Drone Recoveries 1 | . . . . . . . . . . . . . . 1 . . . Exploration | -11 -10 -9 -9 -9 -9 -6 -6 -6 -5 -4 -4 -4 -3 -3 -2 -2 -2 ------------- Run | Yrd Mat Mat Sto Rec Scr Fac Was Fac Fac Fac Was Fac Res Qua Res Tes Frg Turns Passed 9836 | 80 339 1101 791 619 1797 1383 234 199 198 159 159 389 336 164 1170 585 133 Spaces Moved 8736 | 46 142 523 325 363 1135 871 316 374 343 248 231 532 468 279 1352 931 257 Core 73 | 3 1 . . . . . . . . . . . . . . . 69 Treads 2572 | 43 141 523 325 363 1032 145 . . . . . . . . . . . Legs 3 | . . . . . . 3 . . . . . . . . . . . Wheels 635 | . . . . . 103 532 . . . . . . . . . . . Hover 5453 | . . . . . . 191 316 374 343 248 231 532 468 279 1352 931 188 Flight . | . . . . . . . . . . . . . . . . . . Fastest Speed 27 | 50 160 160 160 160 105 43 48 43 43 48 48 48 40 49 28 27 40 Average Speed 81 | 152 160 160 160 160 155 104 48 47 45 48 48 48 47 49 36 31 43 Slowest Speed 400 | 160 200 160 160 160 160 400 48 48 50 55 48 48 50 50 103 40 60 Overloaded Moves 312 | . . . . . . 4 . 52 256 . . . . . . . . Propulsion Burnouts . | . . . . . . . . . . . . . . . . . . Robots Hopped . | . . . . . . . . . . . . . . . . . . Potential Cave-ins . | . . . . . . . . . . . . . . . . . . Cave-ins Triggered . | . . . . . . . . . . . . . . . . . . Exploration Rate (%) 44 | 4 41 40 66 96 82 25 95 10 15 5 95 18 15 71 28 90 13 Regions Visited 17 Branch Regions 6 Pre-discovered Areas 1 | . . . . . . 1 . . . . . . . . . . . Known Exits Taken 9 | . . 1 1 . . . . 1 1 . . 1 1 1 1 1 . Unknown Exits Taken 4 | 1 1 . . 1 1 . . . . . . . . . . . . Scrap Searched 5 | . . . . . 5 . . . . . . . . . . . . Spaces Dug 42 | . . . . . . 4 . 3 3 4 . . . 5 19 4 . Terrain Destroyed 404 | . . . . . . 108 . 3 3 4 . 198 . 5 30 53 . Melee 42 | . . . . . . 4 . 3 3 4 . . . 5 19 4 . Projectile 3 | . . . . . . 3 . . . . . . . . . . . AOE 359 | . . . . . . 101 . . . . . 198 . . 11 49 . Terrain Rammed . | . . . . . . . . . . . . . . . . . . Walls Destroyed . | . . . . . . . . . . . . . . . . . . Machines Disabled . | . . . . . . . . . . . . . . . . . . Actions | -11 -10 -9 -9 -9 -9 -6 -6 -6 -5 -4 -4 -4 -3 -3 -2 -2 -2 --------- Run | Yrd Mat Mat Sto Rec Scr Fac Was Fac Fac Fac Was Fac Res Qua Res Tes Frg Total 10784 | 53 197 684 517 381 1172 1171 397 388 372 277 279 623 566 292 1976 1167 272 Wait 1313 | . 12 33 135 4 24 122 73 11 14 16 44 59 66 . 531 164 5 Move 8721 | 45 141 522 324 362 1134 871 315 373 342 248 230 531 467 278 1351 930 257 Hop . | . . . . . . . . . . . . . . . . . . Pick Up 93 | 3 6 25 2 1 6 15 1 . 3 1 2 2 5 1 16 4 . Fast Attach 58 | 5 6 9 . 1 . 13 1 . 2 1 . 2 5 4 4 5 . Attach 38 | . . 1 . 1 . 19 1 . 2 2 . 1 3 . 7 . 1 Detach 4 | . . . . . . 3 . . . . . . 1 . . . . Swap 58 | . 1 11 6 1 5 9 3 . 1 1 1 . 2 1 9 7 . Drop 99 | . 1 25 8 1 3 16 2 . 1 2 2 2 7 2 17 10 . Fire 245 | . 30 58 42 10 . 86 . . . . . 13 . . 1 5 . Melee 136 | . . . . . . 17 . 4 7 6 . 13 7 6 40 32 4 Ram 5 | . . . . . . . . . . . . . . . . . 5 Kick . | . . . . . . . . . . . . . . . . . . Crush . | . . . . . . . . . . . . . . . . . . Escape Stasis 3 | . . . . . . . . . . . . . 3 . . . . Rewire 11 | . . . . . . . 1 . . . . . . . . 10 . Trap . | . . . . . . . . . . . . . . . . . . Miscellaneous . | . . . . . . . . . . . . . . . . . . Route ------- -11/Scrapyard -10/Materials -9/Materials (discovered 4 exits: [*Mat] / Min x2 / *Sto) -9/Storage (discovered 2 exits: [*Mat] / *Rec) -9/Recycling (discovered 2 exits: [*Fac] / *Scr) -9/Scraptown (discovered 2 exits: *Fac x2) -6/Factory -6/Waste -6/Factory -5/Factory (discovered 4 exits: *Fac x4) -4/Factory -4/Waste -4/Factory (discovered 4 exits: *Res x4) -3/Research (discovered 3 exits: *Res / *Qua x2) -3/Quarantine -2/Research (discovered 2 exits: *Tes x2) -2/Testing (discovered 3 exits: *Acc / [*Sec] / *Frg) -2/Protoforge History --------- Turn | Location | Event 27 | -11/Scrapyard | Discovered new exit (range 16) 81 | -11/Scrapyard | Entered Materials 349 | -10/Materials | Build established: Mutant 412 | -10/Materials | Discovered new exit (range 5) 420 | -10/Materials | Entered another Materials area 420 | -9/Materials | Evolved 2 slots: Propulsion x1, Utility x1 821 | -9/Materials | Build established: Scavenger-Mutant 1191 | -9/Materials | Identified exit to Mines 1191 | -9/Materials | Identified exit to Storage 1268 | -9/Materials | Discovered new exit (range 9) 1521 | -9/Materials | Entered Storage 1748 | -9/Storage | Identified exit to Recycling 1970 | -9/Storage | Discovered new exit (range 16) 2188 | -9/Storage | Destroyed 8 combat bots 2306 | -9/Storage | Used back door to open Recycling access 2312 | -9/Storage | Entered Recycling 2564 | -9/Recycling | Discovered new exit (range 15) 2706 | -9/Recycling | Build established: Mutant 2886 | -9/Recycling | Scanned before Scraplab entrance 2915 | -9/Recycling | Entered Scraplab 2927 | -9/Recycling | Discovered new exit (range 3) 2931 | -9/Recycling | Entered Scraptown 3111 | -9/Scraptown | Visited Symbiants 3133 | -9/Scraptown | Build established: Scavenger-Mutant 3171 | -9/Scraptown | Visited The Evicted 3296 | -9/Scraptown | Discovered new exit (range 9) 3672 | -9/Scraptown | Visited Spacefarers 3759 | -9/Scraptown | Build established: Mutant 3763 | -9/Scraptown | Visited Cyclists 3797 | -9/Scraptown | Visited Fellowship of the Rings 3933 | -9/Scraptown | Visited UFD Registry 3933 | -9/Scraptown | Registered with UFD as "Shockback" 3975 | -9/Scraptown | Visited Scrap Suit Storage 4003 | -9/Scraptown | Visited A0-MCA Data Center 4013 | -9/Scraptown | Given a B rating by A0-MCA 4048 | -9/Scraptown | Visited Derelict Rescue Squad 4077 | -9/Scraptown | Visited Junk Repository 4120 | -9/Scraptown | Visited DA-N13 Charitable Foundation 4126 | -9/Scraptown | Found DCF Scrap (29 items) 4218 | -9/Scraptown | Visited Supply Room 4272 | -9/Scraptown | Visited Scrapoid Pod Storage 4302 | -9/Scraptown | Visited Botcube Research 4342 | -9/Scraptown | Visited Curators Association 4397 | -9/Scraptown | Visited Cartography Club 4481 | -9/Scraptown | Found A0-MCA's Component Scanner 4652 | -9/Scraptown | Met Optimus 4652 | -9/Scraptown | Accepted into 0bPrime 4725 | -9/Scraptown | Discovered new exit (range 3) 4728 | -9/Scraptown | Entered Factory 4728 | -6/Factory | Evolved 6 slots: Power x1, Propulsion x3, Utility x2 5512 | -6/Factory | Allied Derelicts emerged from ambush trap array 5622 | -6/Factory | Loaded intel: 8 recycling unit locations 5640 | -6/Factory | Build established: Scavenger-Mutant 5697 | -6/Factory | Lost 3 allies 5710 | -6/Factory | Lost 4 parts (3n1w) 5991 | -6/Factory | Lost 6 parts (1p2n1u2w) 6015 | -6/Factory | Learned location of Protoforge (-2) 6035 | -6/Factory | Cargo convoy interrupted 6111 | -6/Factory | Sucked down chute 6111 | -6/Factory | Entered Waste 6111 | -6/Waste | The area was eerily silent 6206 | -6/Waste | Found Broken Adv. Powered Armor 6223 | -6/Waste | Discovered new exit (range 12) 6230 | -6/Waste | Identified exit to Factory 6291 | -6/Waste | Build established: Hacker-Mutant 6345 | -6/Waste | Entered Factory 6408 | -6/Factory | Loaded intel: 8 recycling unit locations 6534 | -6/Factory | Discovered new exit (range 6) 6536 | -6/Factory | Identified exit to Factory 6544 | -6/Factory | Entered another Factory area 6544 | -5/Factory | Evolved 2 slots: Utility x2 6601 | -5/Factory | Identified exit to Factory 6742 | -5/Factory | Entered another Factory area 6742 | -4/Factory | Evolved 2 slots: Propulsion x1, Utility x1 6840 | -4/Factory | Central database locked down 6901 | -4/Factory | Sucked down chute 6901 | -4/Factory | Entered Waste 6902 | -4/Waste | Joined by Warlord forces that had cleared the area 6941 | -4/Waste | A Compactor rumbled back to life 6941 | -4/Waste | Spotted C-40 Crusher 6943 | -4/Waste | Allies destroyed C-40 Crusher 7001 | -4/Waste | Discovered new exit (range 13) 7017 | -4/Waste | Identified exit to Factory 7060 | -4/Waste | Entered Factory 7060 | -4/Factory | Accompanied by 20 allies 7078 | -4/Factory | Central database locked down 7085 | -4/Factory | Loaded intel: 8 recycling unit locations 7144 | -4/Factory | Lost 4 allies 7182 | -4/Factory | Repaired Broken Adv. Powered Armor 7233 | -4/Factory | Destroyed 8 combat bots 7310 | -4/Factory | First assault squad dispatched 7334 | -4/Factory | Identified exit to Research 7449 | -4/Factory | Entered Research 7449 | -3/Research | Accompanied by 9 allies 7449 | -3/Research | Evolved 2 slots: Propulsion x1, Utility x1 7462 | -3/Research | Discovered new exit (range 5) 7590 | -3/Research | Repaired Broken Cmb. Linear Gravjet? 7637 | -3/Research | Identified exit to Research 7671 | -3/Research | P-80 Master assimilated allied WK-RHX(m) 7738 | -3/Research | Identified exit to Quarantine 7785 | -3/Research | Entered Quarantine 7785 | -3/Quarantine | Spotted Alpha 7 7789 | -3/Quarantine | Lost 3 parts (2u1w) 7829 | -3/Quarantine | Found Fusion Bomb Launcher 7844 | -3/Quarantine | Found Adv. Powered Armor 7949 | -3/Quarantine | Entered Research 7949 | -2/Research | Evolved 2 slots: Propulsion x1, Utility x1 8009 | -2/Research | Central database locked down 8515 | -2/Research | Identified exit to Testing 8619 | -2/Research | Repaired Adv. Powered Armor 8928 | -2/Research | Found Unknown Device 8937 | -2/Research | Identified Adv. Force Booster 8958 | -2/Research | Build established: Hacker-Sprinter 9119 | -2/Research | Entered Testing 9343 | -2/Testing | Rewired PX-JK8I1TGIYA 9370 | -2/Testing | Found Prototype Energy Cannon 9374 | -2/Testing | Identified Hpw. Disruptor Cannon 9426 | -2/Testing | Scanned by Researcher 9460 | -2/Testing | Discovered new exit (range 15) 9467 | -2/Testing | Identified exit to Access 9516 | -2/Testing | Spotted Striker 9516 | -2/Testing | Spotted Striker 9518 | -2/Testing | Spotted Alpha 7 9586 | -2/Testing | Lost 3 parts (2n1u) 9629 | -2/Testing | Spotted PD-0LPQW6S15O 9672 | -2/Testing | Spotted Fortress 9702 | -2/Testing | Discovered new exit (range 7) 9702 | -2/Testing | Discovered new exit (range 6) 9704 | -2/Testing | Identified exit to Protoforge 9704 | -2/Testing | Entered Protoforge 9743 | -2/Protoforge | Superfortress began startup sequence 9745 | -2/Protoforge | Spotted Hotshot 9749 | -2/Protoforge | Spotted Hotshot 9754 | -2/Protoforge | Spotted Hotshot 9772 | -2/Protoforge | Spotted Hotshot 9774 | -2/Protoforge | Spotted Hotshot 9792 | -2/Protoforge | Released all parts (13) 9808 | -2/Protoforge | Core integrity fell below 50% 9812 | -2/Protoforge | Spotted B-90 Cyclops 9823 | -2/Protoforge | Core integrity fell below 20% 9827 | -2/Protoforge | Spotted Hotshot 9833 | -2/Protoforge | Spotted Hotshot 9834 | -2/Protoforge | Spotted Hotshot 9837 | -2/Protoforge | Destroyed by Hotshot with Improved Heavy Laser Last Messages --------------- 09806_ K-01 Serf collects debris. 09806_ Penetrated by Slug. 09807_ Slammed into H-88 Terminator. 09807_ Penetrated by Slug. 09808_ Slammed into W-44 Eye. 09810_ Penetrated by Slug. 09810_ K-01 Serf destroyed. 09812_ K-01 Serf collects debris. 09814_ Penetrated by Slug. 09814_ Slug penetrates Wall. 09816_ Acquired 10 matter. 09816_ K-01 Serf collects debris. 09818_ Cmb. Linear Gravjet+ destroyed. 09819_ Penetrated by Slug. 09824_ O-32 Director: "IFF HANDSHAKE FAILED. SECURING TERMINAL." 09826_ O-32 Director sends out distress signal. 09829_ Critical hit (Burn: +37). 09831_ ALERT: Hostiles spotted, dispatching reinforcements to Terminal F008. Map ----- +----------------------------------------------------+ | """ """ #????????????????????????????????????????? | | #????????????????????????????????????????? | | " ! #????????????????????????????????????????? | | == "" #????????????????????????????????????????? | | [=!* #????????????????????????????????????????? | | #########????????????????????????????????????????? | | ????? #????????????????????????????????????????? | | ??? #????????????????????????????????????????? | | ? #????????????????????????????????????????? | | #????????????????????????????????????????? | | """" ????????????????? ???????????????????????? | | """" ???????????????? #??????????????????????? | | ?""" ????????????????# +??????????????????????? | | ???"?????????????????# #??????????????????????? | | ???#####??????###????# #??????????????????????? | | ? ????? ??# #??????????????????????? | | """ "????# ## #??????????????????????? | | """ "????# ## #??????????????????????? | | """ "????# """ """ ## #??????????????????????? | | ? ???# """ """ ## g #???####???????????????? | | ??? ?# """ """ ## #?? ???????????????? | | ????? ? ?# #?? """"???????????????? | | ???????###??? ???# g #? """"???????????????? | | ###############+######g #? """"""?????????????? | | # """""" #?????????? | | @# #?????????? | | + #?????????? | | """" """" # #?????????? | | """" """" ###+######### # #?????????? | | """" """" #? ???????# #?"" "" #?????????? | | """" """" #? ???????# ;?""T"" #?????????? | | """" """" + ??????# #??""" #?????????? | | """" """" # ??????# #??######??????????????? | | # """""?????# #??????????????????????? | | # """""?????# #??????????????????????? | | ##+######+### """"""????? ???????????????????????? | | ????????????# ?????? ???????????????????????? | | ????????????##???????????#???????????????????????? | | ?????????????????????????????????????????????????? | | ?????????????????????????????????????????????????? | | ?????????????????????????????????????????????????? | | ?????????????????????????????????????????????????? | | ?????????????????????????????????????????????????? | | ?????????????????????????????????????????????????? | | ?????????????????????????????????????????????????? | | ?????????????????????????????????????????????????? | | | | | | | | | +----------------------------------------------------+ Best States ------------- Heat Dissipation 87 Energy Generation 43 Energy Capacity 590 Matter Stores 300 Matter Capacity 300 Sight Range 16 Robot Scan Range 18 Terrain Scan Density 10 Base Temperature (-) 200 Armor Coverage 1000 Utility Shielding 33 Evasion (%) 69 Targeting Accuracy 12 Recoil Reduction 3 Offensive Hacking 38 Defensive Hacking 20 Item Schematics ----------------- Cld. Linear Gravjet | -2/Testing | Archive Robot Schematics ------------------ None Fabricated ------------ Nothing Repaired ---------- Adv. Powered Armor | 5% | -4/Factory | Broken Cmb. Linear Gravjet | 6% | -3/Research | Broken Adv. Powered Armor | 4% | -2/Research Studied --------- Cmb. Gravmag System | -4/Factory | Hacked Antimatter Reactor | -4/Factory | Hacked Gyrokinetic Inverter | -4/Factory | Hacked Antigrav Array | -3/Research | Hacked Micro-nuke Launcher | -3/Research | Hacked Cmb. Linear Gravjet | -2/Research | Hacked Fusion Bomb Launcher | -2/Research | Hacked Alien Tech Used ----------------- None Achievements -------------- Below Challenges ------------ None Game ------ Seed BattleProjectileInterrupter Manual? 0 Play Time 02:35:36 Cumulative 91.3 hours Start 2026.07.16 @ 00:08:39 End 2026.07.16 @ 02:53:57 Sessions 1 Manual Loads 0 Difficulty Rogue Special Mode None Game No. 102 Rogue 48 Adventurer 54 Explorer 0 Win Type - Total 2 Types 2/0/0/0/0/0/0/0/0/0 Lore% 40 Gallery% 46 Achievement% 42 Wizard Run 0 Options --------- Layout 1 ASCII 0 Keyboard 0 Movement Mouse Keybinds 1 Fullscreen 1 Font 32/Tamsyn Map View 50x35 Zoom Use 0% Tactical HUD 1 Map Filters NONE Filters NONE Steam 1 RUN: cc43880c-ac56-45b4-ac7e-4ab50fe72d58